[Event "125-Jahre Werder Bremen 2024"]
[Site "Bremen"]
[Date "2024.03.09"]
[Round "8.12"]
[White "Guichard, Pauline"]
[Black "Soderstrom, Adrian"]
[Result "1-0"]
[ECO "D35"]
[WhiteElo "2385"]
[BlackElo "2288"]
[Annotator "TA"]
[PlyCount "57"]
[EventDate "2024.02.26"]
[EventType "swiss"]
[EventCountry "GER"]
[SourceTitle "playchess.com"]
[Source "ChessBase"]
[SourceQuality "1"]
[TimeControl "40/6000+30:1800+30"]

{[%evp 13,57,-14,0,0,22,16,49,58,58,62,77,60,70,78,108,103,120,92,121,114,181,173,209,218,218,219,219,223,231,229,225,226,227,220,218,222,369,369,793,777,860,855,29975,29977,29977,29976]} 1. d4 {[%emt 0:00:23]} d5 {[%emt 0:00:06]} 2. c4 {[%emt 0:00:05]} e6 {[%emt 0:00:03]} 3. Nc3 {[%emt 0:00:05]} Be7 {[%emt 0:00:05]} 4. Nf3 {[%emt 0:00:07]} Nf6 {[%emt 0:00:02]} 5. cxd5 exd5 {[%emt 0:00:07]} 6. Bf4 {[%emt 0:00:11]} c6 {[%emt 0:01:50]} 7. e3 {[%emt 0:00:23]} Bf5 {[%emt 0:01:03]} 8. Nh4 {[%emt 0:04:40]} Be6 {[%emt 0:04:34]} 9. Bd3 {[%emt 0:04:33]} Ne4 {[%emt 0:02:43]} 10. Nf3 {[%emt 0:01:22] White is slightly better.} Nxc3 11. bxc3 {[%emt 0:00:07]} Nd7 {[%emt 0:05:55]} 12. Qb1 {[%emt 0:10:19]} b5 {[%emt 0:25:41]} 13. a4 {[%emt 0:17:01]} (13. Bxh7 $6 g6 14. Bxg6 fxg6 15. Qxg6+ Bf7 16. Qxc6 Qc8 17. Qxc8+ Rxc8 $11) 13... bxa4 {[%emt 0:09:05]} 14. Rxa4 {[%emt 0:02:42]} h6 {[%emt 0:03:55]} 15. Qa2 {[%emt 0:07:24][%cal Oa4a6]} O-O {[%emt 0:05:00]} 16. O-O {[%emt 0:01:01] White has more active pieces.} (16. Rxa7 $6 Rxa7 17. Qxa7 Qa8 18. Qxa8 Rxa8 $14) 16... Bg4 {[%emt 0:04:24]} (16... g5 $16 {was worth a try.}) 17. Rxa7 $18 {[%emt 0:02:57]} Bxf3 {[%emt 0:04:39]} 18. gxf3 {[%emt 0:00:07]} Rxa7 {[%emt 0:06:20]} 19. Qxa7 {[%emt 0:00:06] Threatens to win with Rb1.} Nf6 {[%emt 0:00:28][%cal Bd7f6,Bf6h5,Bh5g3][%mdl 32]} 20. Rb1 {[%emt 0:02:38]} Bd6 {[%emt 0:00:47] Wards off Rb8} 21. Bg3 {[%emt 0:00:27]} Nh5 {[%emt 0:01:51]} 22. Kg2 {[%emt 0:08:03]} Nxg3 {[%emt 0:02:54]} 23. hxg3 {[%emt 0:00:05]} ({Don't take} 23. fxg3 $6 Qg5) 23... h5 {[%emt 0:05:04] Black is weak on the light squares} 24. Qb7 {[%emt 0:10:02]} h4 {[%emt 0:06:35]} (24... Qa8 $142 25. Qd7 Rd8) 25. Qxc6 {[%emt 0:00:46]} Bxg3 $2 {[%emt 0:01:16]} (25... Bb8 26. Rb5 hxg3 27. Qxd5 (27. Rxd5 $2 {too greedy.} Qh4 $19) (27. fxg3 Qe7 $18) 27... Qh4) 26. fxg3 {[%emt 0:05:04]} Qg5 {[%emt 0:00:02]} 27. Qd6 {[%emt 0:00:58] [#] aiming for Rb8.} Qxe3 {[%emt 0:00:38]} 28. Rb8 {[%emt 0:01:41][%csl Gd6][%cal Rb8f8]} h3+ {[%emt 0:00:28]} 29. Kxh3 {[%emt 0:01:15] Black did not feel at home in the position after the opening.   Weighted Error Value: White=0.03 (flawless) /Black=0.50.  Mistake:       	---       	Black=3      Inaccurate:     	---       	Black=3      OK:         	White=8     	Black=5} 1-0

[Event "125-Jahre Werder Bremen 2024"]
[Site "Bremen"]
[Date "2024.03.10"]
[Round "9.1"]
[White "Aditya Mittal"]
[Black "Plat, Vojtech"]
[Result "1/2-1/2"]
[ECO "E91"]
[WhiteElo "2594"]
[BlackElo "2528"]
[Annotator "TA"]
[PlyCount "53"]
[EventDate "2024.02.26"]
[EventType "swiss"]
[EventCountry "GER"]
[SourceTitle "playchess.com"]
[Source "ChessBase"]
[SourceQuality "1"]
[TimeControl "40/6000+30:1800+30"]

{[%evp 15,53,47,59,32,33,39,43,37,57,47,40,43,54,41,59,20,29,44,46,23,42,33,51,0,0,0,0,0,0,0,0,0,0,0,7,9,8,0,0,0]} 1. d4 {[%emt 0:00:01]} d6 {[%emt 0:01:14]} 2. Nf3 {[%emt 0:00:02]} Nf6 {[%emt 0:00:12]} 3. c4 {[%emt 0:00:01]} g6 {[%emt 0:01:58]} 4. Nc3 {[%emt 0:00:01]} Bg7 {[%emt 0:00:05]} 5. e4 {[%emt 0:00:02]} O-O {[%emt 0:00:08]} 6. Be2 {[%emt 0:00:01]} a5 {[%emt 0:02:47]} 7. O-O {[%emt 0:05:26]} Nc6 {[%emt 0:03:40]} 8. d5 {[%emt 0:02:04]} Nb4 {[%emt 0:01:03]} 9. a3 {[%emt 0:05:58]} Na6 {[%emt 0:01:51]} 10. Be3 {[%emt 0:00:02]} e6 {[%emt 0:03:29]} 11. h3 {[%emt 0:03:57] Weiß steht etwas besser.} exd5 {[%emt 0:04:19]} 12. cxd5 {[%emt 0:03:02]} Re8 {[%emt 0:00:46]} 13. Qc2 {[%emt 0:02:17]} Qe7 {[%emt 0:01:18][%cal Rf6e4]} 14. Bb5 {[%emt 0:08:32]} Bd7 {[%emt 0:00:45]} 15. Bxa6 {[%emt 0:07:34]} Rxa6 {[%emt 0:02:43]} 16. Rfe1 {[%emt 0:00:47]} Raa8 {[%emt 0:02:11][%cal Ob7b5]} 17. Bd4 {[%emt 0:04:34]} c5 {[%emt 0:04:54]} 18. dxc6 {[%emt 0:00:14]} Bxc6 {[%emt 0:00:19][%cal Rf6e4] [#]} 19. Nd5 {[%emt 0:06:08]} Bxd5 $11 {[%emt 0:00:23] Die Stellung ist ausgeglichen.} 20. exd5 {[%emt 0:00:01]} Qd7 {[%emt 0:00:23]} 21. Qd3 {[%emt 0:01:33]} Rxe1+ {[%emt 0:02:39]} 22. Rxe1 {[%emt 0:01:08]} Re8 {[%emt 0:00:04]} 23. Rxe8+ {[%emt 0:10:21]} Qxe8 {[%emt 0:00:05]} 24. Qc4 {[%emt 0:08:16]} h6 {[%emt 0:04:47]} 25. b3 {[%emt 0:01:58]} Qd7 {[%emt 0:02:30]} 26. a4 {[%emt 0:04:26]} Qf5 {[%emt 0:03:21]} 27. Bxf6 {[%emt 0:35:34] Gewichteter Fehlerwert: Weiß=0.11 (sehr präzise) /Schwarz=0.03 (makellos) .  Fehler:       	Weiß=1     	---        Ungenau:       	Weiß=1     	---        OK:         	Weiß=6     	Schwarz=6     Bester:       	Weiß=1     	Schwarz=2} 1/2-1/2

[Event "125-Jahre Werder Bremen 2024"]
[Site "Bremen"]
[Date "2024.03.10"]
[Round "9.2"]
[White "Efimenko, Zahar"]
[Black "Teclaf, Pawel"]
[Result "*"]
[ECO "B88"]
[WhiteElo "2568"]
[BlackElo "2556"]
[Annotator "TA"]
[PlyCount "99"]
[EventDate "2024.02.26"]
[EventType "swiss"]
[EventCountry "GER"]
[SourceTitle "playchess.com"]
[Source "ChessBase"]
[SourceQuality "1"]
[TimeControl "40/6000+30:1800+30"]

{[%evp 50,99,281,199,227,137,202,185,197,189,185,118,191,233,208,209,230,208,216,220,229,151,163,-92,-72,-113,-112,-118,-124,-106,0,0,0,-114,-120,-116,-106,-111,0,-111,0,-86,-79,-442,0,0,0,0,0,0,0,0]} 1. e4 {[%emt 0:00:43]} c5 {[%emt 0:00:30]} 2. Nf3 {[%emt 0:00:30]} d6 {[%emt 0:00:30]} 3. d4 {[%emt 0:00:30]} cxd4 4. Nxd4 {[%emt 0:00:30]} Nf6 {[%emt 0:01:00]} 5. Nc3 {[%emt 0:00:30]} a6 {[%emt 0:00:30]} 6. Bc4 {[%emt 0:00:30]} e6 {[%emt 0:01:03]} 7. a4 {[%emt 0:00:30]} Be7 {[%emt 0:05:54]} 8. O-O {[%emt 0:00:42]} O-O {[%emt 0:00:30]} 9. Be3 {[%emt 0:00:39]} Nc6 {[%emt 0:05:14]} 10. Bb3 {[%emt 0:03:25]} Bd7 {[%emt 0:05:24]} 11. f4 {[%emt 0:03:04] B88: Sicilian: Sozin Attack.} h6 $146 {[%emt 0:17:51]} ({Predecessor:} 11... e5 12. fxe5 dxe5 13. Nf5 Bxf5 14. Rxf5 Qxd1+ 15. Rxd1 Ng4 16. Bb6 g6 17. Rff1 Nd4 18. Nd5 Bg5 19. Bxd4 exd4 20. Rxd4 {1-0 Garcia Meza,D (1856)-Nunez Mercado,F (1553) Barranquilla Carnaval Cup 2024 (6)}) 12. Qe2 {[%emt 0:09:01]} Qa5 {[%emt 0:14:38]} 13. f5 {[%emt 0:06:16]} e5 {[%emt 0:05:15]} 14. Nxc6 {[%emt 0:01:21]} bxc6 {[%emt 0:01:24]} 15. Rad1 {[%emt 0:01:56]} Rab8 {[%emt 0:01:12]} 16. Bf2 {[%emt 0:06:15]} Rb4 {[%emt 0:05:18]} 17. Kh1 {[%emt 0:18:02]} Bc8 {[%emt 0:08:03]} 18. Qe1 {[%emt 0:08:58]} Qd8 {[%emt 0:09:26]} 19. Bc5 {[%emt 0:09:23]} dxc5 {[%emt 0:05:18]} 20. Rxd8 {[%emt 0:00:30]} Rxd8 {[%emt 0:00:30]} 21. Qe2 {[%emt 0:04:34]} Rdd4 {[%emt 0:01:59]} 22. Rd1 {[%emt 0:05:56]} c4 {[%emt 0:01:55]} 23. Ba2 {[%emt 0:00:32]} Bc5 {[%emt 0:03:50]} 24. a5 {[%emt 0:06:40]} Rxb2 {[%emt 0:05:12]} 25. Bxc4 {[%emt 0:00:30]} Rxd1+ {[%emt 0:04:37]} (25... Rb4 $142 26. Bd3 (26. Bxa6 $2 Bxa6 27. Qxa6 $19)) 26. Nxd1 {[%emt 0:02:18]} Rb1 {[%emt 0:00:30]} 27. Bd3 {[%emt 0:05:27]} (27. Bxa6 $2 Bxa6 28. Qf3 Nxe4 $19) 27... h5 {[%emt 0:01:17]} (27... Ra1 $16 {might work better.}) 28. h3 $1 $18 {[%emt 0:01:11]} (28. Bxa6 $2 Bxa6 29. Qf3 Ng4 $19) 28... h4 {[%emt 0:00:41]} 29. Kh2 $1 {[%emt 0:01:23]} (29. Bxa6 $2 Bxa6 30. c4 Nxe4 $19) 29... Ra1 {[%emt 0:00:30]} 30. c3 {[%emt 0:02:59]} (30. Bxa6 $2 Bxa6 31. Qd2 (31. Qxa6 $2 Rxd1 32. Qe2 Ra1 $19) 31... Bd4 $19 (31... Nxe4 $2 32. Qd8+ Bf8 33. Qxh4 $19)) (30. Bc4 $18 {[%cal Oc4f7] Black must now prevent Bxf7+!} Nxe4 31. Qxe4 (31. Bxa6 $2 Ng3 $19) 31... Rxd1 32. Qxh4 (32. Qxe5 Bg1+ 33. Kh1 Bd4+ 34. Kh2 Bxe5+ 35. g3 Rd2+ 36. Kg1 hxg3 37. c3 Bxc3 38. h4 Bd4+ 39. Kf1 g2+ 40. Ke1 Be3 41. Bxf7+ Kxf7 42. h5 g1=Q#)) 30... Bd6 {[%emt 0:01:49]} (30... Bd7 $16 31. Ne3 (31. Bxa6 Rxa5 32. Bc4 Be8 $16) 31... Be8) 31. Ne3 $18 {[%emt 0:01:16]} (31. Bxa6 $2 Bxa6 32. Qxa6 Rxd1 33. Qa8+ (33. Qxc6 $2 Nh5 $19) 33... Bf8 $19) 31... Bc5 {[%emt 0:00:30]} 32. g4 {[%emt 0:02:57]} (32. Bxa6 $2 Bxa6 33. Qf2 Bd3 $19 (33... Nxe4 $2 34. Qxh4 Bxe3 35. Qxe4 $19) (33... Rxa5 $2 34. Qe1 $19)) 32... hxg3+ {[%emt 0:00:30]} 33. Kxg3 {[%emt 0:00:30]} Rxa5 {[%emt 0:01:05]} 34. Nc4 {[%emt 0:00:42]} Ra1 {[%emt 0:01:00]} 35. Qb2 {[%emt 0:01:51]} (35. Nxe5 Bd6 36. Kg2 (36. Kf4 $2 Nd7 $19) 36... Bxe5 $17) 35... Rd1 {[%emt 0:00:30]} 36. Bc2 $2 {[%emt 0:01:16]} (36. Nxe5 Bd6 37. Kg2 Bxe5 $19) (36. Qc2 $1 $18 {[%cal Rc2d1]} Re1 37. Kg2 (37. Nxe5 Bxf5 38. exf5 Rxe5 $11)) 36... Nh5+ $1 $17 {[%emt 0:00:30]} 37. Kh2 {[%emt 0:03:09] [#]} (37. Kh4 $2 Rg1 $19) 37... Rf1 $1 {[%emt 0:01:37]} 38. h4 {[%emt 0:01:21]} Rf2+ {[%emt 0:00:30]} 39. Kh3 {[%emt 0:00:30]} Rf3+ {[%emt 0:00:49]} (39... Nf4+ $17 40. Kg4 Rg2+ 41. Kf3 Nd3) 40. Kg2 $1 $11 {[%emt 0:00:51]} (40. Kg4 Rg3+ 41. Kxh5 g6+ 42. fxg6 fxg6+ 43. Kh6 Bf8#) 40... Rf2+ {[%emt 0:00:30]} (40... Rg3+ $11 41. Kf1 Nf4) 41. Kh3 $17 {[%emt 0:30:44]} Nf4+ {[%emt 0:24:33]} 42. Kg4 {[%emt 0:00:00]} Rg2+ {[%emt 0:00:13]} 43. Kf3 {[%emt 0:00:00]} Rf2+ {[%emt 0:00:02]} 44. Kg4 {[%emt 0:00:00] [#]} f6 {[%emt 0:00:38]} (44... Nd3 $1 $17 {( -> ...Rg2+)} 45. Qb1 Rg2+ 46. Kf3 Rxc2) 45. Qb3 {[%emt 0:00:00]} ({But not} 45. Qb8 $2 Rg2+ 46. Kf3 Rxc2 $19 (46... Rf2+ 47. Kg4 $17)) (45. Nxe5 $11 fxe5 46. Qb8 Rg2+ 47. Kf3 Rf2+ 48. Kg4) 45... Kh7 $17 {[%emt 0:00:12]} 46. Bd1 $2 {[%emt 0:00:00][%mdl 8192]} (46. Nxe5 $17 {nothing else works.} fxe5 47. Bb1) 46... Bd7 $2 {[%emt 0:02:40]} ({Black should play} 46... Rg2+ $19 47. Kf3 Rh2) 47. Qb8 $11 {[%emt 0:00:00]} Rg2+ {[%emt 0:05:20]} 48. Kf3 {[%emt 0:00:00]} Rf2+ {[%emt 0:00:53]} 49. Kg4 {[%emt 0:00:00]} Rg2+ {[%emt 0:00:26]} 50. Kf3 {[%emt 0:00:00]} *

[Event "125-Jahre Werder Bremen 2024"]
[Site "Bremen"]
[Date "2024.03.10"]
[Round "9.3"]
[White "Gumularz, Szymon"]
[Black "Pruijssers, Roeland"]
[Result "1/2-1/2"]
[ECO "D35"]
[WhiteElo "2590"]
[BlackElo "2537"]
[Annotator "TA"]
[PlyCount "44"]
[EventDate "2024.02.26"]
[EventType "swiss"]
[EventCountry "GER"]
[SourceTitle "playchess.com"]
[Source "ChessBase"]
[SourceQuality "1"]
[TimeControl "40/6000+30:1800+30"]

{[%evp 12,44,20,13,20,11,16,0,54,19,37,15,7,8,47,29,51,46,41,31,32,0,0,0,0,4,0,0,0,0,0,0,0,0,0]} 1. c4 {[%emt 0:00:43]} e6 {[%emt 0:00:12]} 2. Nc3 {[%emt 0:00:07]} d5 {[%emt 0:00:19]} 3. d4 {[%emt 0:00:06]} Nf6 {[%emt 0:00:10]} 4. cxd5 {[%emt 0:00:05]} Nxd5 {[%emt 0:00:19]} 5. e4 {[%emt 0:00:09]} Nxc3 {[%emt 0:00:06]} 6. bxc3 {[%emt 0:00:04]} c5 {[%emt 0:00:06]} 7. Rb1 {[%emt 0:00:07]} Be7 {[%emt 0:03:51]} 8. Nf3 {[%emt 0:00:30]} O-O {[%emt 0:00:09]} 9. Bc4 {[%emt 0:01:28]} a6 {[%emt 0:02:06]} (9... Nc6 $11) 10. a4 $1 $14 {[%emt 0:00:10]} Qc7 {[%emt 0:02:33] [#] ...cxd4 would now be deadly.} 11. Be2 {[%emt 0:00:20]} b6 {[%emt 0:00:46]} 12. O-O {[%emt 0:00:27]} Rd8 {[%emt 0:12:31]} 13. Qb3 {[%emt 0:08:40]} cxd4 {[%emt 0:12:28]} 14. cxd4 {[%emt 0:00:11][%cal Oc1e3]} Bb7 {[%emt 0:00:06]} 15. d5 {[%emt 0:16:38]} exd5 {[%emt 0:00:08]} 16. Qxb6 {[%emt 0:00:04]} Qxb6 {[%emt 0:04:32] The position is equal.} 17. Rxb6 {[%emt 0:00:15]} Bc6 {[%emt 0:01:52]} 18. exd5 {[%emt 0:00:20]} Bxa4 {[%emt 0:07:27]} 19. Bf4 {[%emt 0:03:37]} Nd7 $1 {[%emt 0:00:52]} 20. Rb7 {[%emt 0:06:49]} Bf8 {[%emt 0:06:05]} 21. Bc4 {[%emt 0:10:37]} Nc5 {[%emt 0:05:16]} 22. Rb6 {[%emt 0:01:47]} Bb5 {[%emt 0:08:01] Weighted Error Value: White=0.08 (flawless) /Black=0.10 (very precise) .  Mistake:       	---       	Black=1      Inaccurate:     	White=1     	Black=1      OK:         	White=2     	Black=10     Strong:       	White=1     	Black=1} 1/2-1/2

[Event "125-Jahre Werder Bremen 2024"]
[Site "Bremen"]
[Date "2024.03.10"]
[Round "9.4"]
[White "Cheng, Bobby"]
[Black "Schneider, Jana"]
[Result "1/2-1/2"]
[ECO "D40"]
[WhiteElo "2584"]
[BlackElo "2303"]
[Annotator "TA"]
[PlyCount "52"]
[EventDate "2024.02.26"]
[EventType "swiss"]
[EventCountry "GER"]
[SourceTitle "playchess.com"]
[Source "ChessBase"]
[SourceQuality "1"]
[TimeControl "40/6000+30:1800+30"]

{[%evp 25,52,13,5,8,28,0,4,0,0,0,0,0,-1,-125,-114,-96,-104,-128,-118,-165,-147,-511,-104,-170,-166,-174,-140,-162,-143]} 1. Nf3 {[%emt 0:00:03]} d5 {[%emt 0:00:10]} 2. e3 {[%emt 0:00:05]} Nf6 {[%emt 0:00:28]} 3. c4 {[%emt 0:00:06]} e6 {[%emt 0:00:08]} 4. Nc3 {[%emt 0:00:06]} c5 {[%emt 0:02:30]} 5. d4 {[%emt 0:02:00]} Nc6 {[%emt 0:01:57]} 6. a3 {[%emt 0:01:13]} a6 {[%emt 0:08:04]} 7. dxc5 {[%emt 0:04:12]} Bxc5 {[%emt 0:01:29]} 8. b4 {[%emt 0:00:08]} Ba7 {[%emt 0:03:41]} 9. Bb2 {[%emt 0:00:39]} O-O {[%emt 0:02:52]} 10. Qc2 {[%emt 0:01:36]} Qe7 {[%emt 0:05:25]} 11. Rd1 {[%emt 0:04:16]} Rd8 {[%emt 0:02:10]} 12. Be2 {[%emt 0:01:54][%cal Bf1e2,Be2c4,Bc4a2,Ba2b1][%mdl 32]} dxc4 {[%emt 0:04:56]} 13. Rxd8+ {[%emt 0:00:05]} Nxd8 {[%emt 0:01:06]} 14. Bxc4 {[%emt 0:12:27]} b5 {[%emt 0:05:05]} 15. Ba2 {[%emt 0:00:07]} Bb7 {[%emt 0:00:40]} 16. O-O {[%emt 0:01:12] The position is equal.} Rc8 {[%emt 0:02:59]} 17. Bb1 {[%emt 0:11:19]} Bb8 {[%emt 0:06:24]} 18. Rd1 {[%emt 0:12:25]} Qc7 {[%emt 0:10:15]} 19. Qd3 {[%emt 0:03:07]} (19. Ne2 $11 {remains equal.}) 19... Bxf3 $17 {[%emt 0:02:05]} 20. gxf3 {[%emt 0:00:04]} Qxh2+ {[%emt 0:00:07]} 21. Kf1 {[%emt 0:00:02] Threatens to win with Qxd8+.} Nc6 {[%emt 0:03:17]} 22. Ne4 {[%emt 0:03:35] [#]} (22. Qd2 $17) 22... Nd5 $1 $19 {[%emt 0:03:45] Hoping for ...Be5.} 23. Rc1 $2 {[%emt 0:02:10][%mdl 8192] [#]} (23. Ba2 $17 {was the crucial defense.} Rd8 24. Bxd5 Rxd5 25. Qc2 Rxd1+ 26. Qxd1 Qh1+ 27. Ke2 Qxd1+ 28. Kxd1) 23... Bf4 $2 {[%emt 0:11:20]} (23... Be5 $1 $19 {[%mdl 512] has better winning chances.} 24. Nc3 Qh3+ 25. Ke1 Bxc3+ (25... Qxf3 $2 {perishes.} 26. Qxh7+ Kf8 27. Nxd5 $18) 26. Rxc3 Nxc3 27. Qxc3 e5 (27... Qxf3 28. Qxg7#)) 24. Nd2 {[%emt 0:20:13] [#]} (24. Rc5 $17 {keeps fighting.}) 24... g6 $1 {[%emt 0:05:39] White must now prevent ...Be5. Black is clearly better.} 25. Ke1 {[%emt 0:10:07]} Be5 {[%emt 0:04:16]} 26. Bxe5 {[%emt 0:10:24]} Qxe5 {[%emt 0:00:17] Weighted Error Value: White=0.58/Black=0.38.  Loses game:     	White=1     	---        Missed win:     	---       	Black=1      Mistake:       	White=3     	---        OK:         	White=4     	Black=8      Best:        	---       	Black=1      Strong:       	---       	Black=1} 1/2-1/2

[Event "125-Jahre Werder Bremen 2024"]
[Site "Bremen"]
[Date "2024.03.10"]
[Round "9.5"]
[White "Colbow, Collin"]
[Black "Kopylov, Daniel"]
[Result "1-0"]
[ECO "C42"]
[WhiteElo "2373"]
[BlackElo "2346"]
[Annotator "TA"]
[PlyCount "141"]
[EventDate "2024.02.26"]
[EventType "swiss"]
[EventCountry "GER"]
[SourceTitle "playchess.com"]
[Source "ChessBase"]
[SourceQuality "1"]
[TimeControl "40/6000+30:1800+30"]

{[%evp 46,141,85,24,19,19,136,148,132,139,129,147,133,150,119,14,15,15,15,15,12,26,25,0,57,0,0,0,0,0,0,0,0,0,0,0,0,0,0,0,0,0,0,0,0,0,187,187,170,192,204,193,949,949,779,779,5302,5306,6195,5103,5639,5306,12847,29937,29946,602,543,0,5529,12682,29976,29977,29974,5639,29967,29969,29969,29968,29971,29972,29979,29971,29975,29976,29976,29977,29977,29978,29978,29979,29979,29980,29980,29980,29981,29982,29982,29983]} 1. e4 {[%emt 0:09:23]} e5 {[%emt 0:00:31]} 2. Nf3 {[%emt 0:00:12]} Nf6 {[%emt 0:00:11]} 3. Nxe5 {[%emt 0:00:10]} d6 {[%emt 0:00:13]} 4. Nf3 {[%emt 0:00:21]} Nxe4 {[%emt 0:00:10]} 5. Bd3 {[%emt 0:00:09]} Nf6 {[%emt 0:00:21]} 6. O-O {[%emt 0:00:33]} Be7 {[%emt 0:00:09]} 7. h3 {[%emt 0:00:18]} O-O {[%emt 0:00:15]} 8. c3 {[%emt 0:00:06]} b6 {[%emt 0:00:34]} 9. Bc2 {[%emt 0:00:15]} Bb7 {[%emt 0:00:16]} 10. d4 {[%emt 0:00:08]} Nbd7 {[%emt 0:00:47]} 11. Bf4 {[%emt 0:00:36]} Re8 {[%emt 0:09:31]} 12. Nbd2 {[%emt 0:04:25]} Bf8 {[%emt 0:01:44]} 13. Re1 {[%emt 0:01:18]} Rxe1+ {[%emt 0:02:24]} 14. Qxe1 {[%emt 0:04:39]} Qe7 {[%emt 0:01:23]} 15. Qf1 {[%emt 0:01:03]} Re8 {[%emt 0:01:41]} 16. c4 {[%emt 0:02:19]} g6 {[%emt 0:07:51]} 17. d5 {[%emt 0:06:53]} Bg7 {[%emt 0:01:47]} 18. Re1 {[%emt 0:01:57]} Qf8 {[%emt 0:04:40]} 19. Be3 {[%emt 0:12:57]} a5 {[%emt 0:08:05]} 20. Nd4 {[%emt 0:07:44]} Ba6 {[%emt 0:11:11]} 21. Ba4 {[%emt 0:02:02]} Re7 {[%emt 0:08:13]} 22. Bb5 {[%emt 0:06:31]} Bxb5 {[%emt 0:08:37]} 23. Nxb5 {[%emt 0:02:41]} Nc5 {[%emt 0:00:59]} 24. a3 {[%emt 0:20:21]} ({Better is} 24. Nf3 $16) 24... Nfe4 {[%emt 0:11:02]} 25. b4 {[%emt 0:03:35]} Na6 {[%emt 0:09:23]} (25... Nxd2 $11 26. Bxd2 axb4) 26. Nxe4 $16 {[%emt 0:11:24]} Rxe4 {[%emt 0:00:02]} 27. bxa5 {[%emt 0:00:54]} bxa5 {[%emt 0:00:54]} 28. Bd2 {[%emt 0:00:13]} Rxe1 {[%emt 0:01:34]} 29. Qxe1 {[%emt 0:00:07]} a4 {[%emt 0:00:16]} 30. Ba5 {[%emt 0:02:01]} ({White should try} 30. Be3 $16 {Hoping for Qa5.} Qc8 31. Qa5) 30... Be5 $11 {[%emt 0:03:56]} 31. g3 {[%emt 0:07:58]} (31. Nxc7 Nxc7 32. Bxc7 Qc8 $15) 31... Qc8 {[%emt 0:01:23]} 32. Kg2 {[%emt 0:00:01]} Qa8 {[%emt 0:07:43]} 33. f4 {[%emt 0:03:09]} Bb2 {[%emt 0:05:23]} 34. Qe2 {[%emt 0:00:10]} Bg7 $1 {[%emt 0:02:22]} 35. Nxc7 {[%emt 0:00:10]} (35. Bxc7 $14 Nxc7 36. Nxc7) 35... Nxc7 $11 {[%emt 0:00:17]} 36. Bxc7 {[%emt 0:00:01]} Bf8 $1 {[%emt 0:00:10]} 37. Bb6 {[%emt 0:01:20]} Qb7 {[%emt 0:00:45]} 38. Ba5 {[%emt 0:00:48]} Qb1 {[%emt 0:01:41]} 39. Bb4 {[%emt 0:00:12]} h5 {[%emt 0:00:10]} 40. h4 {[%emt 0:00:54]} Kh7 {[%emt 0:00:29]} 41. Kh2 {[%emt 0:06:31]} Kg8 {[%emt 0:03:25]} 42. Kg2 {[%emt 0:11:47]} Kh7 {[%emt 0:01:11]} 43. Kf2 {[%emt 0:04:04]} Kg8 {[%emt 0:08:16]} 44. Qd2 {[%emt 0:04:00]} Qe4 {[%emt 0:02:35]} 45. Bc3 {[%emt 0:01:25]} Qxc4 $2 {[%emt 0:13:00]} (45... Qh1 $11) 46. Qd4 $18 {[%emt 0:00:09]} Qc5 {[%emt 0:00:54] [#]} 47. Ke2 $1 {[%emt 0:02:38]} Qb5+ {[%emt 0:01:18]} 48. Ke3 {[%emt 0:00:16]} Qc5 $2 {[%emt 0:00:32]} (48... Qb3 49. Qh8#) (48... f6) 49. Qxc5 $18 {[%emt 0:02:08]} dxc5 {[%emt 0:00:01] [#]} 50. Kd3 $1 {[%emt 0:00:04]} f5 {[%emt 0:02:24]} 51. Kc4 {[%emt 0:00:11]} Kf7 {[%emt 0:00:08]} 52. Be1 {[%emt 0:01:36]} Ke7 {[%emt 0:02:14]} 53. Bf2 {[%emt 0:00:08]} ({Worse is} 53. Kxc5 Kd7+ 54. Kb5 Bxa3 55. Kxa4 Bc5 $11) 53... Kd7 {[%emt 0:00:04]} 54. Bxc5 {[%emt 0:00:16]} Bg7 {[%emt 0:00:08]} 55. Bd4 {[%emt 0:00:08]} (55. Kb4 $142 Bb2 56. Kxa4 Bc3 57. Kb5 Be1 58. a4 Bxg3 59. a5 Bxh4 60. d6 (60. a6 Kc7 $18)) 55... Bf8 $18 {[%emt 0:00:05]} 56. Bc5 {[%emt 0:00:03]} (56. Bb2 $142) 56... Bg7 $1 $18 {[%emt 0:00:05]} 57. Kb4 {[%emt 0:00:21]} Kc7 {[%emt 0:00:06]} 58. Kxa4 {[%emt 0:01:00]} Bc3 {[%emt 0:00:01]} 59. Bf2 {[%emt 0:00:34]} (59. Kb5 $142 Be1 60. d6+ Kb7 61. Bb6 Bxg3 62. d7 Bxh4 63. d8=Q (63. d8=R Bxd8 64. Bxd8 g5 $18) 63... Bxd8 64. Bxd8) 59... Kd6 {[%emt 0:00:27]} 60. Kb3 {[%emt 0:00:04]} Ba5 {[%emt 0:00:22]} 61. Kc4 {[%emt 0:00:06]} Bd2 {[%emt 0:00:14]} 62. a4 {[%emt 0:00:25]} Ba5 {[%emt 0:00:08]} 63. Kb5 {[%emt 0:02:52]} Bd2 {[%emt 0:00:35]} 64. a5 {[%emt 0:00:08]} Bxa5 {[%emt 0:00:15]} 65. Kxa5 {[%emt 0:00:04]} Kxd5 {[%emt 0:00:03]} 66. Kb5 {[%emt 0:00:23]} Ke4 {[%emt 0:00:04]} 67. Kc6 {[%emt 0:00:36]} Kf3 {[%emt 0:00:05]} 68. Be1 {[%emt 0:00:05]} Ke2 {[%emt 0:00:04]} 69. Bc3 {[%emt 0:00:22]} Kf3 {[%emt 0:00:05]} 70. Bf6 {[%emt 0:00:12]} Kxg3 {[%emt 0:00:02]} 71. Bg5 {[%emt 0:00:07]} 1-0